fUSD/lending_fUSD_20260408
["ID","MTS","AMOUNT","RATE_DAILY","PERIOD"]
[420057974,1775639442226,-504.74596653,0.00013698,2]
[420057975,1775639442236,-500.0,0.00013698,2]
[420057976,1775639442247,-500.0,0.00013698,2]
[420057977,1775639442257,-500.0,0.00013698,2]
[420057978,1775639442267,-500.0,0.00013698,2]
[420057979,1775639442277,-500.0,0.00013698,2]
[420057980,1775639442287,-500.0,0.00013698,2]
[420057981,1775639442296,-500.0,0.00013698,2]
[420057982,1775639442306,-500.0,0.00013698,2]
[420057983,1775639442316,-500.0,0.00013698,2]
[420057984,1775639442326,-500.0,0.00013698,2]
[420057985,1775639442336,-499.6872898,0.00013698,2]
[420057986,1775639442346,-500.0,0.00013698,2]
[420057987,1775639442356,-500.0,0.00013698,2]
[420057988,1775639442366,-500.0,0.00013698,2]
[420057989,1775639442376,-500.0,0.00013698,2]
[420057990,1775639442387,-500.0,0.00013698,2]
[420057991,1775639442397,-500.0,0.00013698,2]
[420057992,1775639442407,-500.0,0.00013698,2]
[420057993,1775639442417,-615.24875447,0.00013698,2]
[420057994,1775639442427,-500.0,0.00013698,2]
[420057995,1775639442437,-500.0,0.00013698,2]
[420057996,1775639442446,-500.45174561,0.00013698,2]
[420057997,1775639442456,-500.0,0.00013698,2]
[420057998,1775639442466,-500.0,0.00013698,2]
[420057999,1775639442476,-500.0,0.00013698,2]
[420058000,1775639442487,-500.0,0.00013698,2]
[420058001,1775639442498,-406.01852309,0.00013698,2]
[420058002,1775639442508,-500.0,0.00013698,2]
[420058003,1775639442518,-500.0,0.00013698,2]
[420058004,1775639442528,-500.0,0.00013698,2]
[420058006,1775639442538,-500.0,0.00013698,2]
[420058009,1775639442548,-500.0,0.00013698,2]
[420058012,1775639442558,-500.0,0.00013698,2]
[420058015,1775639442568,-500.0,0.00013698,2]
[420058018,1775639442578,-500.0,0.00013698,2]
[420058021,1775639442588,-500.0,0.00013698,2]
[420058023,1775639442599,-500.0,0.00013698,2]
[420058024,1775639442608,-500.0,0.00013698,2]
[420058025,1775639442619,-500.0,0.00013698,2]
[420058026,1775639442629,-500.0,0.00013698,2]
[420058027,1775639442639,-500.0,0.00013698,2]
[420058028,1775639442649,-500.0,0.00013698,2]
[420058029,1775639442659,-500.0,0.00013698,2]
[420058030,1775639442670,-500.0,0.00013698,2]
[420058031,1775639442680,-562.38643831,0.00013698,2]
[420058032,1775639442691,-500.0,0.00013698,2]
[420058033,1775639442701,-542.71692042,0.00013698,2]
[420058034,1775639442712,-500.0,0.00013698,2]
[420058035,1775639442722,-500.0,0.00013698,2]
[420058036,1775639442732,-500.0,0.00013698,2]
[420058037,1775639442743,-500.0,0.00013698,2]
[420058038,1775639442753,-500.0,0.00013698,2]
[420058039,1775639442763,-500.0,0.00013698,2]
[420058040,1775639442773,-500.0,0.00013698,2]
[420058041,1775639442784,-500.0,0.00013698,2]
[420058042,1775639442794,-500.0,0.00013698,2]
[420058043,1775639442803,-500.0,0.00013698,2]
[420058044,1775639442814,-500.0,0.00013698,2]
[420058045,1775639442824,-500.0,0.00013698,2]
[420058046,1775639442834,-500.0,0.00013698,2]
[420058047,1775639442844,-500.0,0.00013698,2]
[420058048,1775639442855,-500.0,0.00013698,2]
[420058049,1775639442865,-500.0,0.00013698,2]
[420058050,1775639442875,-500.0,0.00013698,2]
[420058051,1775639442886,-500.0,0.00013698,2]
[420058052,1775639442896,-215.39830433,0.00013698,2]
[420058053,1775639442906,-823.97,0.00013698,2]
[420058054,1775639442916,-823.97,0.00013698,2]
[420058055,1775639442926,-823.97,0.00013698,2]
[420058056,1775639442936,-823.97,0.00013698,2]
[420058058,1775639442946,-823.97,0.00013698,2]
[420058059,1775639442956,-823.97,0.00013698,2]
[420058060,1775639442966,-823.97,0.00013698,2]
[420058061,1775639442976,-823.97,0.00013698,2]
[420058062,1775639442986,-823.97,0.00013698,2]
[420058063,1775639442997,-823.97,0.00013698,2]
[420058064,1775639443006,-823.97,0.00013698,2]
[420058065,1775639443023,-823.97,0.00013698,2]
[420058066,1775639443034,-823.97,0.00013698,2]
[420058067,1775639443046,-553.39225555,0.00013698,2]
[420058068,1775639443057,-823.97,0.00013698,2]
[420058069,1775639443067,-823.97,0.00013698,2]
[420058070,1775639443079,-823.97,0.00013698,2]
[420058071,1775639443089,-823.97,0.00013698,2]
[420058072,1775639443100,-823.97,0.00013698,2]
[420058073,1775639443111,-823.97,0.00013698,2]
[420058074,1775639443121,-500.0,0.00013698,2]
[420058075,1775639443132,-500.0,0.00013698,2]
[420058076,1775639443143,-500.0,0.00013698,2]
[420058077,1775639443153,-264.78361919,0.00013698,2]
[420058078,1775639443165,-500.0,0.00013698,2]
[420058079,1775639443176,-500.0,0.00013698,2]
[420058080,1775639443187,-500.0,0.00013698,2]
[420058081,1775639443198,-500.0,0.00013698,2]
[420058082,1775639443209,-500.0,0.00013698,2]
[420058083,1775639443219,-500.0,0.00013698,2]
[420058084,1775639443232,-500.0,0.00013698,2]
[420058085,1775639443242,-595.48595604,0.00013698,2]
[420058086,1775639443253,-150.0,0.00013699,2]
[420058087,1775639443264,-150.0,0.00013699,2]
[420058088,1775639443275,-150.0,0.00013699,2]
[420058089,1775639443286,-2138.0,0.00013699,2]
[420058090,1775639443297,-200.0,0.00013699,2]
[420058091,1775639443307,-476.15,0.00013699,2]
[420058092,1775639443671,-396.8,0.00013699,2]
[420058093,1775639443682,-330.66,0.00013699,2]
[420058094,1775639443694,-275.55,0.00013699,2]
[420058095,1775639443705,-229.63,0.00013699,2]
[420058096,1775639443717,-191.36,0.00013699,2]
[420058097,1775639443727,-159.46,0.00013699,2]
[420058098,1775639443738,-797.34,0.00013699,2]
[420058099,1775639443749,-500.0,0.00013699,2]
[420058100,1775639443761,-500.0,0.00013699,2]
[420058101,1775639443772,-538.78941312,0.00013699,2]
[420058102,1775639443784,-500.0,0.00013699,2]
[420058103,1775639443796,-500.0,0.00013699,2]
[420058104,1775639443807,-500.0,0.00013699,2]
[420058105,1775639443817,-500.0,0.00013699,2]
[420058106,1775639443829,-502.38567456,0.00013699,2]
[420058107,1775639443840,-500.0,0.00013699,2]
[420058108,1775639443851,-500.0,0.00013699,2]
[420058109,1775639443862,-500.0,0.00013699,2]
[420058110,1775639443873,-500.0,0.00013699,2]
[420058111,1775639443884,-361.43877969,0.00013699,2]
[420058112,1775639443895,-501.53334874,0.00013699,2]
[420058113,1775639443907,-165.08001948,0.00013699,2]
[420058114,1775639443918,-500.0,0.00013699,2]
[420058115,1775639443929,-308.60154884,0.00013699,2]
[420058116,1775639443940,-501.22826804,0.00013699,2]
[420058117,1775639443951,-500.0,0.00013699,2]
[420058118,1775639443964,-500.0,0.00013699,2]
[420058119,1775639443975,-502.08343248,0.00013699,2]
[420058120,1775639443987,-500.0,0.00013699,2]
[420058121,1775639443999,-500.0,0.00013699,2]
[420058122,1775639444011,-500.0,0.00013699,2]
[420058123,1775639444023,-500.0,0.00013699,2]
[420058124,1775639444035,-500.0,0.00013699,2]
[420058125,1775639444046,-500.0,0.00013699,2]
[420058126,1775639444058,-288.28066678,0.00013699,2]
[420058127,1775639444069,-500.0,0.00013699,2]
[420058128,1775639444080,-164.42313659,0.00013699,2]
[420058129,1775639444090,-500.0,0.00013699,2]
[420058130,1775639444100,-163.86569709,0.00013699,2]
[420058131,1775639444111,-500.0,0.00013699,2]
[420058132,1775639444123,-244.23047354,0.00013699,2]
[420058133,1775639444133,-500.0,0.00013699,2]
[420058134,1775639444145,-500.0,0.00013699,2]
[420058135,1775639444156,-500.0,0.00013699,2]
[420058136,1775639444167,-500.0,0.00013699,2]
[420058137,1775639444178,-500.0,0.00013699,2]
[420058138,1775639444189,-500.32940014,0.00013699,2]
[420058139,1775639444200,-500.0,0.00013699,2]
[420058140,1775639444211,-503.98766467,0.00013699,2]
[420058141,1775639444222,-500.0,0.00013699,2]
[420058142,1775639444234,-500.0,0.00013699,2]
[420058143,1775639444246,-500.18173431,0.00013699,2]
[420058144,1775639444257,-474.64837932,0.00013699,2]
[420058145,1775639444268,-500.0,0.00013699,2]
[420058146,1775639444279,-153.97,0.00013699,2]
[420058147,1775639444290,-786.02,0.00013699,2]
[420058148,1775639444301,-964.0,0.00013699,2]
[420058149,1775639444312,-964.0,0.00013699,2]
[420058150,1775639444322,-964.0,0.00013699,2]
[420058151,1775639444333,-964.0,0.00013699,2]
[420058152,1775639444344,-964.0,0.00013699,2]
[420058153,1775639444355,-964.0,0.00013699,2]
[420058154,1775639444365,-964.0,0.00013699,2]
[420058155,1775639444376,-964.0,0.00013699,2]
[420058156,1775639444386,-964.0,0.00013699,2]
[420058157,1775639444398,-964.0,0.00013699,2]
[420058158,1775639444408,-964.0,0.00013699,2]
[420058159,1775639444418,-964.0,0.00013699,2]
[420058160,1775639444429,-964.0,0.00013699,2]
[420058161,1775639444439,-964.0,0.00013699,2]
[420058162,1775639444449,-964.0,0.00013699,2]
[420058163,1775639444460,-964.0,0.00013699,2]
[420058164,1775639444471,-964.0,0.00013699,2]
[420058165,1775639444482,-964.0,0.00013699,2]
[420058166,1775639444493,-964.0,0.00013699,2]
[420058167,1775639444505,-964.0,0.00013699,2]
[420058168,1775639444516,-964.0,0.00013699,2]
[420058169,1775639444526,-964.0,0.00013699,2]
[420058170,1775639444536,-964.0,0.00013699,2]
[420058171,1775639444547,-985.24465103,0.00013699,2]
[420058172,1775639444558,-1068.9578223,0.00013739,2]
[420058173,1775639444568,-10270.07323375,0.0001377,2]
[420058174,1775639444579,-277.0,0.00013839,3]
[420058175,1775639444590,-1206.0,0.00013867,5]
[420058176,1775639444600,-160.0,0.00013962,2]
[420058177,1775639444611,-284.626346,0.00013962,2]
[420058178,1775639444622,-232.504378,0.00013962,7]
[420058179,1775639444632,-409.252692,0.00013962,2]
[420058180,1775639444643,-387.701056,0.00013962,2]
[420058181,1775639444655,-160.0,0.00013962,7]
[420058182,1775639444665,-302.550276,0.00013962,7]
[420058183,1775639444675,-445.100552,0.00013962,7]
[420058184,1775639444686,-180.367034,0.00013962,7]
[420058185,1775639444697,-150.0,0.00013973,2]
[420058186,1775639444708,-150.0,0.00013973,2]
[420058187,1775639444718,-150.0,0.00013973,2]
[420058188,1775639444729,-786.02,0.00013973,2]
[420058189,1775639444739,-1500.0,0.00014,2]
[420058190,1775639444751,-4733.74989347,0.00014006,2]
[420058191,1775639444762,-371.0,0.00014006,2]
[420058192,1775639444773,-222.7944,0.000141,2]
[420058193,1775639444783,-823.97,0.00014125,2]
[420058194,1775639444794,-823.97,0.00014125,2]
[420058195,1775639444805,-823.97,0.00014125,2]
[420058196,1775639444817,-823.97,0.00014125,2]
[420058197,1775639444828,-824.09706313,0.00014125,2]
[420058198,1775639444839,-160.0,0.00014144,2]
[420058199,1775639444850,-31451.11543114,0.00014162,2]
[420058200,1775639444861,-507.0,0.00014179,2]
[420058201,1775639444871,-150.0,0.00014247,2]
[420058202,1775639444884,-150.0,0.00014247,2]
[420058203,1775639444896,-1000.0,0.00014247,2]
[420058204,1775639444907,-1000.0,0.00014247,2]
[420058205,1775639444918,-230.66718579,0.00014247,2]
[420058206,1775639444928,-1000.0,0.00014247,2]
[420058207,1775639444939,-1000.0,0.00014247,2]
[420058208,1775639444949,-1000.0,0.00014247,2]
[420058209,1775639444960,-1000.0,0.00014247,2]
[420058210,1775639444971,-1000.0,0.00014247,2]
[420058211,1775639444981,-1000.0,0.00014247,2]
[420058212,1775639444991,-1000.0,0.00014247,2]
[420058213,1775639445002,-1000.0,0.00014247,2]
[420058214,1775639445013,-290.88257095,0.00014247,2]
[420058215,1775639445023,-1000.0,0.00014247,2]
[420058216,1775639445034,-697.87652131,0.00014247,2]
[420058217,1775639445044,-1000.0,0.00014247,2]
[420058218,1775639445055,-1000.0,0.00014247,2]
[420058219,1775639445065,-242.46089406,0.00014247,2]
[420058220,1775639445075,-1000.0,0.00014247,2]
[420058221,1775639445085,-945.29859118,0.00014247,2]
[420058222,1775639445094,-1000.0,0.00014247,2]
[420058223,1775639445104,-501.75332835,0.00014247,2]
[420058224,1775639445114,-500.0,0.00014247,2]
[420058225,1775639445124,-1144.24089955,0.00014247,2]
[420058226,1775639445134,-1000.0,0.00014247,2]
[420058227,1775639445145,-786.02,0.00014247,2]
[420058228,1775639445155,-3449.0,0.000143,2]
[420058229,1775639445165,-10270.07323375,0.00014323,2]
[420058230,1775639445175,-7323.30859515,0.0001439,2]
[420058231,1775639445184,-150.0,0.000144,2]
[420058232,1775639445194,-150.11484194,0.000144,2]
[420058233,1775639445205,-150.0,0.000144,2]
[420058234,1775639445214,-150.0,0.000144,2]
[420058235,1775639445224,-150.12907206,0.000144,2]
[420058236,1775639445234,-150.0,0.000144,2]
[420058237,1775639445245,-150.0,0.000144,2]
[420058238,1775639445255,-150.0,0.000144,2]
[420058239,1775639445265,-150.0,0.000144,2]
[420058240,1775639445277,-150.0,0.000144,2]
[420058241,1775639445287,-150.0,0.000144,2]
[420058242,1775639445297,-150.13966067,0.000144,2]
[420058243,1775639445307,-150.0,0.000144,2]
[420058244,1775639445317,-150.0,0.000144,2]
[420058245,1775639445326,-150.0,0.00014422,2]
[420058246,1775639445337,-150.0,0.00014426,2]
[420058247,1775639445347,-150.0,0.00014431,2]
[420058248,1775639445357,-150.0,0.00014435,2]
[420058249,1775639445367,-150.0,0.00014439,2]
[420058250,1775639445376,-150.0,0.0001444,2]
[420058251,1775639445386,-379.07938652,0.0001444,2]
[420058252,1775639445397,-150.0,0.00014444,2]
[420058253,1775639445408,-150.0,0.00014452,2]
[420058255,1775639445419,-150.0,0.00014462,2]
[420058257,1775639445429,-150.0,0.00014467,2]
[420058258,1775639445439,-150.0,0.0001447,2]
[420058260,1775639445449,-150.0,0.00014473,2]
[420058261,1775639445459,-150.0,0.00014476,2]
[420058262,1775639445470,-150.0,0.00014478,2]
[420058263,1775639445480,-150.0,0.00014479,2]
[420058264,1775639445491,-150.0,0.0001448,2]
[420058265,1775639445501,-150.0,0.00014489,2]
[420058266,1775639445512,-150.0,0.00014492,2]
[420058267,1775639445522,-150.0,0.00014504,2]
[420058268,1775639445533,-150.0,0.00014505,2]
[420058269,1775639445543,-150.0,0.00014511,2]
[420058270,1775639445553,-568.74,0.00014513,2]
[420058271,1775639445563,-568.74,0.00014513,2]
[420058272,1775639445573,-568.74,0.00014513,2]
[420058273,1775639445584,-568.74,0.00014513,2]
[420058274,1775639445594,-568.82574047,0.00014513,2]
[420058275,1775639445605,-150.0,0.00014517,2]
[420058276,1775639445615,-150.0,0.0001452,2]
[420058277,1775639445625,-786.02,0.00014521,2]
[420058278,1775639445635,-150.0,0.00014523,2]
[420058279,1775639445645,-150.0,0.00014523,2]
[420058280,1775639445655,-150.0,0.00014531,2]
[420058281,1775639445665,-150.0,0.00014533,2]
[420058282,1775639445675,-150.0,0.00014539,2]
[420058283,1775639445686,-150.0,0.00014545,2]
[420058284,1775639445696,-150.0,0.00014552,2]
[420058285,1775639445706,-150.0,0.00014554,2]
[420058286,1775639445717,-150.0,0.00014556,2]
[420058287,1775639445728,-150.0,0.00014556,2]
[420058288,1775639445737,-150.0,0.00014557,2]
[420058289,1775639445747,-150.0,0.0001456,2]
[420058290,1775639445757,-150.0,0.00014574,2]
[420058291,1775639445767,-150.0,0.00014578,2]
[420058292,1775639445778,-150.0,0.00014584,2]
[420058293,1775639445788,-150.0,0.00014585,2]
[420058294,1775639445798,-150.0,0.00014595,2]
[420058295,1775639445810,-1152.0,0.00014599,2]
[420058296,1775639445820,-4609.0,0.00014599,2]
[420058297,1775639445831,-155.32006583,0.000146,2]
[420058298,1775639445840,-150.0,0.000146,2]
[420058300,1775639445851,-150.0,0.000146,2]
[420058301,1775639445862,-150.0,0.00014609,2]
[420058302,1775639445872,-1252.0,0.00014609,2]
[420058303,1775639445883,-150.0,0.0001461,2]
[420058304,1775639445893,-150.0,0.00014615,2]
[420058305,1775639445904,-150.0,0.00014618,2]
[420058306,1775639445916,-150.0,0.00014622,2]
[420058307,1775639445926,-228.39,0.00014623,2]
[420058308,1775639445936,-150.0,0.00014629,2]
[420058309,1775639445948,-150.0,0.00014634,2]
[420058310,1775639445958,-150.0,0.00014636,2]
[420058311,1775639445969,-150.0,0.0001464,2]
[420058312,1775639445980,-150.0,0.00014643,2]
[420058313,1775639445990,-150.0,0.00014644,2]
[420058314,1775639446000,-150.0,0.00014646,2]
[420058315,1775639446011,-150.0,0.00014646,2]
[420058316,1775639446022,-388.126835,0.0001466,2]
[420058317,1775639446034,-176.227752,0.0001466,2]
[420058318,1775639446045,-412.568558,0.0001466,7]
[420058319,1775639446055,-150.0,0.00014662,2]
[420058320,1775639446065,-150.0,0.00014667,2]
[420058321,1775639446076,-150.0,0.00014673,2]
[420058322,1775639446088,-150.0,0.00014677,2]
[420058323,1775639446099,-150.0,0.00014678,2]
[420058324,1775639446110,-150.0,0.0001468,2]
[420058325,1775639446121,-150.0,0.00014689,2]
[420058326,1775639446132,-150.0,0.00014689,2]
[420058327,1775639446142,-150.0,0.00014691,2]
[420058328,1775639446152,-31451.11543114,0.00014695,2]
[420058329,1775639446163,-150.0,0.00014705,2]
[420058330,1775639446173,-150.0,0.00014708,2]
[420058331,1775639446183,-150.0,0.00014711,2]
[420058332,1775639446193,-150.0,0.00014712,2]
[420058333,1775639446204,-150.0,0.00014713,2]
[420058334,1775639446213,-150.0,0.00014715,2]
[420058335,1775639446223,-150.0,0.0001472,2]
[420058336,1775639446233,-150.0,0.00014733,2]
[420058337,1775639446412,-150.0,0.00014738,2]
[420058338,1775639446422,-150.0,0.00014741,2]
[420058339,1775639446431,-150.0,0.00014748,2]
[420058340,1775639446441,-150.0,0.00014751,2]
[420058341,1775639446450,-150.0,0.00014756,2]
[420058342,1775639446460,-150.0,0.0001476,2]
[420058343,1775639446470,-150.0,0.00014764,2]
[420058344,1775639446479,-150.0,0.00014767,2]
[420058345,1775639446489,-150.0,0.00014769,2]
[420058346,1775639446499,-150.0,0.00014769,2]
[420058347,1775639446508,-150.0,0.00014778,2]
[420058348,1775639446519,-150.0,0.00014781,2]
[420058349,1775639446529,-150.0,0.00014783,2]
[420058350,1775639446539,-150.0,0.0001479,2]
[420058351,1775639446549,-150.0,0.00014793,2]
[420058352,1775639446559,-250.0,0.00014795,2]
[420058353,1775639446569,-518.40309967,0.00014795,2]
[420058354,1775639446579,-314.26887436,0.00014795,2]
[420058355,1775639446589,-1270.20022981,0.00014795,2]
[420058356,1775639446599,-1500.0,0.00014795,2]
[420058357,1775639446608,-1500.0,0.00014795,2]
[420058358,1775639446618,-1500.0,0.00014795,2]
[420058359,1775639446627,-1070.5730129,0.00014795,2]
[420058360,1775639446637,-1500.0,0.00014795,2]
[420058361,1775639446647,-930.82314799,0.00014795,2]
[420058362,1775639446657,-1500.0,0.00014795,2]
[420058363,1775639446668,-382.1111067,0.00014795,2]
[420058364,1775639446678,-1500.0,0.00014795,2]
[420058365,1775639446688,-501.00461758,0.00014795,2]
[420058366,1775639446697,-786.02,0.00014795,2]
[420058367,1775639446707,-150.0,0.000148,2]
[420058368,1775639446716,-150.0,0.000148,2]
[420058369,1775639446726,-150.0,0.000148,2]
[420058370,1775639446736,-150.0,0.00014817,2]
[420058371,1775639446746,-1068.9578223,0.0001482,2]
[420058372,1775639446756,-150.0,0.0001482,2]
[420058373,1775639446765,-150.0,0.00014822,2]
[420058374,1775639446775,-150.0,0.00014829,2]
[420058375,1775639446785,-150.0,0.00014831,2]
[420058376,1775639446795,-150.0,0.00014836,2]
[420058377,1775639446805,-150.0,0.0001484,2]
[420058378,1775639446815,-150.0,0.00014844,2]
[420058379,1775639446829,-150.0,0.00014846,2]
[420058380,1775639446839,-150.0,0.00014852,2]
[420058381,1775639446848,-150.0,0.00014857,2]
[420058382,1775639446858,-150.0,0.00014862,2]
[420058383,1775639446869,-150.0,0.00014867,2]
[420058384,1775639446879,-150.0,0.00014868,2]
[420058385,1775639446889,-150.0,0.00014872,2]
[420058386,1775639446899,-10270.07323375,0.00014876,2]
[420058387,1775639446909,-150.0,0.0001488,2]
[420058388,1775639446919,-150.0,0.00014887,2]
[420058389,1775639446929,-150.0,0.00014889,2]
[420058390,1775639446939,-150.0,0.00014892,2]
[420058391,1775639446949,-150.0,0.00014892,2]
[420058392,1775639446960,-1600.0,0.00014897,2]
[420058393,1775639446970,-150.0,0.00014898,2]
[420058394,1775639446980,-150.0,0.00014907,2]
[420058395,1775639446991,-150.0,0.00014909,2]
[420058396,1775639447001,-150.0,0.00014911,2]
[420058397,1775639447012,-150.0,0.0001492,2]
[420058398,1775639447022,-150.0,0.00014922,2]
[420058399,1775639447033,-150.0,0.00014923,2]
[420058400,1775639447043,-150.0,0.00014925,2]
[420058401,1775639447053,-150.0,0.00014933,2]
[420058402,1775639447063,-150.0,0.00014933,2]
[420058403,1775639447074,-150.0,0.00014946,2]
[420058404,1775639447084,-150.0,0.00014951,2]
[420058405,1775639447094,-150.0,0.00014954,2]
[420058406,1775639447104,-150.0,0.00014956,2]
[420058407,1775639447114,-150.0,0.00014957,2]
[420058408,1775639447124,-150.0,0.0001496,2]
[420058409,1775639447133,-152.1118183,0.00014976,2]
[420058410,1775639447142,-150.0,0.00014977,2]
[420058411,1775639447152,-150.0,0.00014978,2]
[420058412,1775639447162,-150.0,0.00014982,2]
[420058413,1775639447172,-6976.45084756,0.00014985,2]
[420058414,1775639447182,-150.0,0.00014985,2]
[420058415,1775639447192,-150.0,0.00014985,2]
[420058416,1775639447201,-150.0,0.00014991,2]
[420058417,1775639447211,-150.0,0.00015,2]
[420058418,1775639447221,-300.0,0.00015,2]
[420058419,1775639447231,-2068.01430131,0.00015,2]
[420058420,1775639447240,-160.0,0.00015,2]
[420058421,1775639447250,-2756.92717347,0.00015,2]
[420058422,1775639447259,-1007.07827575,0.00015,2]
[420058423,1775639447269,-150.0,0.00015,2]
[420058424,1775639447278,-150.0,0.00015003,2]
[420058425,1775639447288,-150.0,0.0001501,2]
[420058426,1775639447298,-150.0,0.00015015,2]
[420058427,1775639447307,-150.0,0.00015015,2]
[420058428,1775639447316,-150.0,0.00015022,2]
[420058429,1775639447327,-150.0,0.00015024,2]
[420058430,1775639447337,-150.0,0.00015026,2]
[420058431,1775639447347,-150.0,0.0001503,2]
[420058432,1775639447357,-150.0,0.0001504,2]
[420058433,1775639447367,-150.0,0.00015044,2]
[420058434,1775639447376,-150.0,0.00015046,2]
[420058435,1775639447386,-150.0,0.00015055,2]
[420058436,1775639447395,-150.0,0.00015056,2]
[420058437,1775639447405,-150.0,0.00015061,2]
[420058438,1775639447415,-150.0,0.00015063,2]
[420058439,1775639447424,-150.0,0.00015067,2]
[420058440,1775639447434,-524.53,0.00015068,2]
[420058441,1775639447443,-985.91,0.00015068,2]
[420058442,1775639447453,-150.0,0.00015077,2]
[420058443,1775639447463,-150.0,0.0001508,2]
[420058444,1775639447472,-1950.0,0.0001508,2]
[420058445,1775639447494,-1950.0,0.0001508,2]
[420058446,1775639447507,-1950.0,0.0001508,2]
[420058447,1775639447517,-1950.0,0.0001508,2]
[420058448,1775639447527,-1950.0,0.0001508,2]
[420058449,1775639447536,-1950.0,0.0001508,2]
[420058450,1775639447546,-1950.0,0.0001508,2]
[420058451,1775639447556,-1950.0,0.0001508,2]
[420058452,1775639447566,-1950.0,0.0001508,2]
[420058453,1775639447576,-1863.0,0.0001508,2]
[420058454,1775639447586,-150.0,0.00015082,2]
[420058455,1775639447596,-150.0,0.00015086,2]
[420058456,1775639447607,-1050.0,0.00015089,2]
[420058457,1775639447616,-1050.0,0.00015089,2]
[420058458,1775639447627,-1050.0,0.00015089,2]
[420058459,1775639447637,-1050.0,0.00015089,2]
[420058460,1775639447647,-1050.0,0.00015089,2]
[420058461,1775639447657,-1050.0,0.00015089,2]
[420058462,1775639447667,-1050.0,0.00015089,2]
[420058463,1775639447677,-1050.0,0.00015089,2]
[420058464,1775639447687,-1050.0,0.00015089,2]
[420058465,1775639447697,-617.0,0.00015089,2]
[420058466,1775639447708,-150.0,0.00015089,2]
[420058467,1775639447718,-150.0,0.00015096,2]
[420058468,1775639447729,-150.0,0.00015102,2]
[420058469,1775639447739,-150.0,0.00015108,2]
[420058470,1775639447750,-150.0,0.00015108,2]
[420058471,1775639447760,-150.0,0.00015111,2]
[420058472,1775639447770,-150.0,0.0001512,2]
[420058473,1775639447780,-150.0,0.00015127,2]
[420058474,1775639447790,-150.0,0.0001513,2]
[420058475,1775639447799,-160.86,0.00015133,2]
[420058476,1775639447809,-150.0,0.00015133,2]
[420058477,1775639447819,-150.0,0.00015134,2]
[420058478,1775639447829,-150.0,0.00015138,2]
[420058479,1775639447839,-150.0,0.00015138,2]
[420058480,1775639447850,-150.0,0.00015141,2]
[420058481,1775639447860,-150.0,0.00015156,2]
[420058482,1775639447871,-150.0,0.0001516,2]
[420058483,1775639447881,-150.0,0.00015161,2]
[420058484,1775639447891,-150.0,0.00015162,2]
[420058485,1775639447901,-150.0,0.00015165,2]
[420058486,1775639447911,-150.0,0.00015169,2]
[420058487,1775639447921,-150.0,0.00015178,2]
[420058488,1775639447932,-150.0,0.0001518,2]
[420058489,1775639447942,-150.0,0.00015187,2]
[420058490,1775639447952,-578.20924308,0.00015199,2]